[Event "NED-ch U14 Girls 2019"]
[Site "Assen"]
[Date "2019.04.28"]
[Round "1.9"]
[White "Maris, Evi"]
[Black "Venema, Katja"]
[Result "1-0"]
[ECO "C50"]
[WhiteElo "1504"]
[BlackElo "1166"]
[Annotator "NA"]
[PlyCount "83"]
[EventDate "2019.04.27"]
[EventType "swiss"]
[EventCountry "NED"]
[SourceTitle "playchess.com"]
[Source "ChessBase"]
[SourceQuality "1"]
[TimeControl "5400+30"]

1. e4 {[%emt 0:00:00]} e5 {[%emt 0:00:00]} 2. Nf3 {[%emt 0:00:00]} Nc6 {[%emt 0:00:00]} 3. Bc4 {[%emt 0:00:00]} Bc5 {[%emt 0:00:01]} 4. O-O {[%emt 0:00:00]} Nf6 {[%emt 0:00:19]} 5. Nc3 {[%emt 0:00:00]} O-O {[%emt 0:00:16]} 6. d3 {[%emt 0:00:05]} h6 {[%emt 0:00:12]} 7. Be3 {[%emt 0:00:09]} Bb6 {[%emt 0:00:34]} 8. d4 {[%emt 0:00:22]} exd4 {[%emt 0:00:24]} 9. Bxd4 {[%emt 0:00:16]} Qe7 {[%emt 0:00:50]} 10. Re1 {[%emt 0:00:25]} Ba5 {[%emt 0:00:53]} 11. e5 {[%emt 0:00:46]} Nh7 {[%emt 0:02:02]} 12. a3 {[%emt 0:01:07]} Ng5 {[%emt 0:02:24]} 13. Nh4 {[%emt 0:00:39]} Ne6 {[%emt 0:01:49]} 14. Re4 {[%emt 0:00:40]} Nexd4 {[%emt 0:01:15]} 15. Rxd4 {[%emt 0:00:19]} Nxd4 {[%emt 0:00:20]} 16. Qxd4 {[%emt 0:00:10]} Bb6 {[%emt 0:01:56]} 17. Qe4 {[%emt 0:00:43]} Qg5 {[%emt 0:02:02]} 18. Bd3 {[%emt 0:01:36]} Re8 {[%emt 0:02:44]} 19. Nd5 {[%emt 0:02:31]} f5 {[%emt 0:13:00]} 20. Nxf5 {[%emt 0:01:00]} d6 {[%emt 0:02:34]} 21. Nh4 {[%emt 0:02:00]} Rxe5 {[%emt 0:08:27]} 22. Qh7+ {[%emt 0:01:09]} Kf7 {[%emt 0:03:00]} 23. Bg6+ {[%emt 0:00:57]} Ke6 {[%emt 0:01:28]} 24. Qg8+ {[%emt 0:00:50]} Kd7 {[%emt 0:00:53]} 25. Qf7+ {[%emt 0:01:48]} Re7 {[%emt 0:04:29]} 26. Nxe7 {[%emt 0:03:09]} Qxe7 {[%emt 0:00:37]} 27. Qc4 {[%emt 0:02:52]} Kd8 {[%emt 0:02:57]} 28. Qg8+ {[%emt 0:02:04]} Kd7 {[%emt 0:00:47]} 29. Nf5 {[%emt 0:00:29]} Qd8 {[%emt 0:02:13]} 30. Qxg7+ {[%emt 0:01:15]} Kc6 {[%emt 0:00:43]} 31. Qc3+ {[%emt 0:00:48]} Kd7 {[%emt 0:01:13]} 32. Re1 {[%emt 0:02:04]} c5 {[%emt 0:02:42]} 33. Qd3 {[%emt 0:01:15]} Qf6 {[%emt 0:02:10]} 34. Be8+ {[%emt 0:04:12]} Kc7 {[%emt 0:01:17]} 35. Ne3 {[%emt 0:02:04]} Be6 {[%emt 0:00:53]} 36. Qh7+ {[%emt 0:01:44]} Kd8 {[%emt 0:01:46]} 37. Nd5 {[%emt 0:02:56]} Qf5 {[%emt 0:02:57]} 38. Qe7+ {[%emt 0:01:03]} Kc8 {[%emt 0:00:27]} 39. Nxb6+ {[%emt 0:02:32]} axb6 {[%emt 0:00:23]} 40. Rxe6 {[%emt 0:00:39]} Qd5 {[%emt 0:01:21]} 41. Rxd6 {[%emt 0:02:07]} Qxd6 {[%emt 0:01:31]} 42. Qxd6 {[%emt 0:00:10]} 1-0

[Event "NED-ch U14 Girls 2019"]
[Site "Assen"]
[Date "2019.04.29"]
[Round "2.1"]
[White "Yeh, Nora"]
[Black "Huang, Wendy"]
[Result "0-1"]
[ECO "D02"]
[WhiteElo "1529"]
[BlackElo "1586"]
[Annotator "NA RC"]
[PlyCount "96"]
[EventDate "2019.04.28"]
[EventType "swiss"]
[EventCountry "NED"]
[SourceTitle "playchess.com"]
[Source "ChessBase"]
[SourceQuality "1"]
[TimeControl "40/5400+30:1800+30"]

1. d4 {[%emt 0:00:00]} d5 {[%emt 0:00:00]} 2. Nf3 {[%emt 0:00:00]} Nf6 {[%emt 0:00:00]} 3. Bf4 {[%emt 0:00:00]} c5 {[%emt 0:00:00]} 4. e3 {[%emt 0:00:00]} Nc6 {[%emt 0:00:18]} 5. c4 {[%emt 0:00:05]} e6 {[%emt 0:00:43]} 6. Nc3 {[%emt 0:00:10]} Be7 {[%emt 0:03:14]} 7. Bd3 {[%emt 0:00:57]} O-O {[%emt 0:00:37]} 8. O-O {[%emt 0:00:41]} b6 {[%emt 0:01:36]} 9. Ne5 {[%emt 0:03:33]} Bb7 {[%emt 0:02:28]} 10. Rc1 {[%emt 0:01:01]} Rc8 {[%emt 0:03:21]} 11. Bc2 {[%emt 0:12:24]} dxc4 {[%emt 0:06:25]} 12. dxc5 {[%emt 0:07:51]} Nxe5 {[%emt 0:02:52]} 13. Bxe5 {[%emt 0:05:46]} Rxc5 {[%emt 0:01:23]} 14. Bxf6 {[%emt 0:03:45]} Bxf6 {[%emt 0:00:15]} 15. Qxd8 {[%emt 0:00:42]} Rxd8 {[%emt 0:00:57]} 16. Rcd1 {[%emt 0:03:01]} Kf8 {[%emt 0:11:47]} 17. Rxd8+ {[%emt 0:00:39]} Bxd8 {[%emt 0:00:08]} 18. Rd1 {[%emt 0:01:17]} Ke7 {[%emt 0:03:22]} 19. Ne4 {[%emt 0:04:41]} Rd5 {[%emt 0:02:56]} 20. Rxd5 {[%emt 0:07:50]} Bxd5 {[%emt 0:02:09]} 21. Nc3 {[%emt 0:00:28]} Bc6 {[%emt 0:01:11]} 22. a4 {[%emt 0:02:35]} a6 {[%emt 0:01:36]} 23. Na2 {[%emt 0:01:33]} g6 {[%emt 0:03:11]} 24. Nb4 {[%emt 0:01:21]} Bb7 {[%emt 0:00:53]} 25. f3 {[%emt 0:00:27]} Kd6 {[%emt 0:01:48]} 26. Kf2 {[%emt 0:01:21]} Bf6 {[%emt 0:01:42]} 27. b3 {[%emt 0:02:00]} Kc5 {[%emt 0:00:35]} 28. Na2 {[%emt 0:00:55]} cxb3 {[%emt 0:00:59]} 29. Bxb3 {[%emt 0:03:11]} Bd5 {[%emt 0:00:53]} 30. Bxd5 {[%emt 0:01:03]} exd5 {[%emt 0:00:43]} 31. Ke2 {[%emt 0:01:26]} Kc4 {[%emt 0:00:49]} 32. Kd2 {[%emt 0:00:50]} Kb3 {[%emt 0:00:29]} 33. Nc1+ {[%emt 0:00:42]} Kxa4 {[%emt 0:00:14]} 34. Nd3 {[%emt 0:00:20]} Kb3 {[%emt 0:01:10]} 35. Nf4 {[%emt 0:00:33]} Kc4 {[%emt 0:00:50]} 36. Kc2 {[%emt 0:00:43]} b5 {[%emt 0:00:49]} 37. Nd3 {[%emt 0:00:25]} b4 {[%emt 0:00:38]} 38. Nb2+ {[%emt 0:00:35]} Bxb2 {[%emt 0:00:21]} 39. Kxb2 {[%emt 0:00:04]} a5 {[%emt 0:00:19]} 40. Kc2 {[%emt 0:00:10]} a4 {[%emt 0:00:39]} 41. g4 {[%emt 0:30:28]} a3 {[%emt 0:30:26]} 42. Kb1 {[%emt 0:00:06]} b3 {[%emt 0:00:27]} 43. Kc1 {[%emt 0:00:30]} Kc3 {[%emt 0:00:25]} 44. h4 {[%emt 0:00:15]} b2+ {[%emt 0:00:21]} 45. Kd1 {[%emt 0:00:46]} b1=Q+ {[%emt 0:00:17]} 46. Ke2 {[%emt 0:00:05]} Qc2+ {[%emt 0:00:29]} 47. Kf1 {[%emt 0:00:10]} a2 {[%emt 0:00:10]} 48. Kg1 {[%emt 0:00:07]} a1=R# {[%emt 0:00:11]} 0-1

[Event "NED-ch U14 Girls 2019"]
[Site "Assen"]
[Date "2019.04.29"]
[Round "2.2"]
[White "Honkoop, Stella"]
[Black "Morote, Luna"]
[Result "0-1"]
[ECO "A48"]
[WhiteElo "1629"]
[BlackElo "1360"]
[Annotator "NA RC"]
[PlyCount "92"]
[EventDate "2019.04.28"]
[EventType "swiss"]
[EventCountry "NED"]
[SourceTitle "playchess.com"]
[Source "ChessBase"]
[SourceQuality "1"]
[TimeControl "40/5400+30:1800+30"]

1. d4 {[%emt 0:00:00]} Nf6 {[%emt 0:00:00]} 2. Bf4 {[%emt 0:00:00]} g6 {[%emt 0:00:00]} 3. e3 {[%emt 0:00:02]} Bg7 {[%emt 0:00:04]} 4. Nd2 {[%emt 0:00:43]} O-O {[%emt 0:00:10]} 5. h3 {[%emt 0:00:02]} d6 {[%emt 0:00:22]} 6. Ngf3 {[%emt 0:00:24]} Nbd7 {[%emt 0:00:22]} 7. Be2 {[%emt 0:01:37]} Re8 {[%emt 0:00:45]} 8. c3 {[%emt 0:02:21]} Nh5 {[%emt 0:05:25]} 9. Bh2 {[%emt 0:00:07]} e5 {[%emt 0:01:31]} 10. Qc2 {[%emt 0:14:59]} f5 {[%emt 0:02:45]} 11. g4 {[%emt 0:15:03]} fxg4 {[%emt 0:10:35]} 12. hxg4 {[%emt 0:00:06]} Nhf6 {[%emt 0:00:56]} 13. g5 {[%emt 0:07:24]} Nh5 {[%emt 0:14:58]} 14. dxe5 {[%emt 0:08:47]} dxe5 {[%emt 0:01:44]} 15. O-O-O {[%emt 0:00:21]} Qe7 {[%emt 0:02:20]} 16. Ne4 {[%emt 0:07:55]} Nc5 {[%emt 0:03:18]} 17. Nfd2 {[%emt 0:08:41]} Bf5 {[%emt 0:02:48]} 18. Bd3 {[%emt 0:09:49]} Nxd3+ {[%emt 0:08:38]} 19. Qxd3 {[%emt 0:00:07]} Rad8 {[%emt 0:01:23]} 20. Qb5 {[%emt 0:00:08]} c6 {[%emt 0:01:02]} 21. Qc5 {[%emt 0:08:24]} Qxc5 {[%emt 0:02:15]} 22. Nxc5 {[%emt 0:00:01]} b6 {[%emt 0:00:29]} 23. Nce4 {[%emt 0:05:58]} Rd5 {[%emt 0:02:04]} 24. c4 {[%emt 0:03:42]} Rd7 {[%emt 0:02:58]} 25. Nc3 {[%emt 0:02:18]} Red8 {[%emt 0:01:11]} 26. Nde4 {[%emt 0:02:02]} Kf7 {[%emt 0:03:14]} 27. Rxd7+ {[%emt 0:01:01]} Rxd7 {[%emt 0:00:07]} 28. Rd1 {[%emt 0:00:09]} Rxd1+ {[%emt 0:00:20]} 29. Kxd1 {[%emt 0:00:02]} Ke6 {[%emt 0:00:37]} 30. f3 {[%emt 0:01:46]} Bf8 {[%emt 0:00:35]} 31. Bg1 {[%emt 0:00:42]} Be7 {[%emt 0:00:59]} 32. Ke2 {[%emt 0:00:38]} Bxe4 {[%emt 0:01:54]} 33. Nxe4 {[%emt 0:00:13]} Kf5 {[%emt 0:00:19]} 34. Bh2 {[%emt 0:00:26]} Ng7 {[%emt 0:00:53]} 35. Ng3+ {[%emt 0:00:31]} Kxg5 {[%emt 0:00:52]} 36. f4+ {[%emt 0:00:49]} exf4 {[%emt 0:02:20]} 37. exf4+ {[%emt 0:00:02]} Kg4 {[%emt 0:03:18]} 38. Ne4 {[%emt 0:00:51]} Ne6 {[%emt 0:01:19]} 39. Nf2+ {[%emt 0:00:40]} Kf5 {[%emt 0:00:25]} 40. Nd3 {[%emt 0:00:27]} c5 {[%emt 0:01:51]} 41. a3 {[%emt 0:06:41]} Bd6 {[%emt 0:01:10]} 42. Ke3 {[%emt 0:01:48]} g5 {[%emt 0:01:09]} 43. b4 {[%emt 0:07:21]} Bxf4+ {[%emt 0:02:55]} 44. Bxf4 {[%emt 0:03:22]} gxf4+ {[%emt 0:02:00]} 45. Kf2 {[%emt 0:03:25]} Ke4 {[%emt 0:00:47]} 46. Nb2 {[%emt 0:01:15]} h5 {[%emt 0:00:44]} 0-1

[Event "NED-ch U14 Girls 2019"]
[Site "Assen"]
[Date "2019.04.29"]
[Round "2.3"]
[White "Velasco, Kathleen"]
[Black "Den Heijer, Rolinde"]
[Result "0-1"]
[ECO "B73"]
[WhiteElo "1306"]
[BlackElo "1423"]
[Annotator "NA RC"]
[PlyCount "146"]
[EventDate "2019.04.28"]
[EventType "swiss"]
[EventCountry "NED"]
[SourceTitle "playchess.com"]
[Source "ChessBase"]
[SourceQuality "1"]
[TimeControl "40/5400+30:1800+30"]

1. e4 {[%emt 0:00:00]} c5 {[%emt 0:00:00]} 2. Nf3 {[%emt 0:00:00]} d6 {[%emt 0:00:00]} 3. d4 {[%emt 0:00:00]} cxd4 {[%emt 0:00:00]} 4. Nxd4 {[%emt 0:00:00]} Nf6 {[%emt 0:00:00]} 5. Nc3 {[%emt 0:00:00]} g6 {[%emt 0:00:17]} 6. Be2 {[%emt 0:00:36]} Bg7 {[%emt 0:00:20]} 7. Be3 {[%emt 0:00:50]} Nc6 {[%emt 0:00:37]} 8. O-O {[%emt 0:00:34]} O-O {[%emt 0:00:52]} 9. h3 {[%emt 0:03:27]} a6 {[%emt 0:02:28]} 10. Qd2 {[%emt 0:06:11]} Qc7 {[%emt 0:04:07]} 11. f4 {[%emt 0:13:49]} Rb8 {[%emt 0:09:23]} 12. a4 {[%emt 0:02:19]} Bd7 {[%emt 0:07:46]} 13. Nxc6 {[%emt 0:06:01]} Bxc6 {[%emt 0:07:43]} 14. e5 {[%emt 0:00:53]} dxe5 {[%emt 0:01:24]} 15. fxe5 {[%emt 0:01:03]} Rbd8 {[%emt 0:05:43]} 16. Bd3 {[%emt 0:10:11]} Qxe5 {[%emt 0:01:33]} 17. Rae1 {[%emt 0:05:22]} Qc7 {[%emt 0:02:59]} 18. Qf2 {[%emt 0:02:25]} Nd7 {[%emt 0:06:18]} 19. Bc4 {[%emt 0:09:27]} e6 {[%emt 0:01:46]} 20. Bg5 {[%emt 0:03:12]} Rc8 {[%emt 0:01:52]} 21. Be7 {[%emt 0:00:17]} Be5 {[%emt 0:09:58]} 22. Bxf8 {[%emt 0:09:08]} Rxf8 {[%emt 0:00:20]} 23. Qe3 {[%emt 0:10:14]} Bd6 {[%emt 0:08:06]} 24. Kh1 {[%emt 0:05:27]} Bxg2+ {[%emt 0:03:55]} 25. Kxg2 {[%emt 0:01:08]} Qxc4 {[%emt 0:00:28]} 26. Rd1 {[%emt 0:01:54]} Bb8 {[%emt 0:06:00]} 27. Qe4 {[%emt 0:03:14]} Qc7 {[%emt 0:01:15]} 28. Qf4 {[%emt 0:02:40]} Qxf4 {[%emt 0:02:49]} 29. Rxf4 {[%emt 0:00:07]} Bxf4 {[%emt 0:00:13]} 30. Rxd7 {[%emt 0:00:03]} b6 {[%emt 0:00:34]} 31. Kf3 {[%emt 0:00:34]} Be5 {[%emt 0:01:05]} 32. Rb7 {[%emt 0:02:03]} Rb8 {[%emt 0:01:21]} 33. Rd7 {[%emt 0:00:05]} Kg7 {[%emt 0:01:29]} 34. Ne4 {[%emt 0:00:31]} h6 {[%emt 0:00:51]} 35. c3 {[%emt 0:00:19]} Kf8 {[%emt 0:00:27]} 36. Nd2 {[%emt 0:01:22]} Ke8 {[%emt 0:00:40]} 37. Ra7 {[%emt 0:00:33]} a5 {[%emt 0:01:04]} 38. Nc4 {[%emt 0:00:04]} Bh2 {[%emt 0:01:27]} 39. Kg2 {[%emt 0:00:13]} Bf4 {[%emt 0:00:14]} 40. Kf3 {[%emt 0:00:03]} g5 {[%emt 0:00:29]} 41. Ra6 {[%emt 0:30:49]} Bc7 {[%emt 0:30:35]} 42. Ra7 {[%emt 0:00:46]} Kd8 {[%emt 0:00:53]} 43. Na3 {[%emt 0:00:55]} Kd7 {[%emt 0:00:59]} 44. Nc4 {[%emt 0:00:19]} Kc6 {[%emt 0:01:23]} 45. b4 {[%emt 0:00:06]} axb4 {[%emt 0:00:39]} 46. cxb4 {[%emt 0:00:02]} Rc8 {[%emt 0:00:58]} 47. a5 {[%emt 0:01:44]} bxa5 {[%emt 0:01:26]} 48. bxa5 {[%emt 0:00:37]} Kc5 {[%emt 0:01:08]} 49. Nd2 {[%emt 0:01:31]} f5 {[%emt 0:00:49]} 50. Ra6 {[%emt 0:00:00]} Re8 {[%emt 0:00:43]} 51. Ra7 {[%emt 0:00:00]} Kc6 {[%emt 0:00:28]} 52. Nc4 {[%emt 0:00:06]} e5 {[%emt 0:00:56]} 53. a6 {[%emt 0:00:52]} e4+ {[%emt 0:00:30]} 54. Ke2 {[%emt 0:00:06]} f4 {[%emt 0:02:35]} 55. Rb7 {[%emt 0:00:46]} Ra8 {[%emt 0:01:07]} 56. Nd2 {[%emt 0:01:27]} Rxa6 {[%emt 0:00:32]} 57. Rb2 {[%emt 0:00:42]} Be5 {[%emt 0:00:52]} 58. Rc2+ {[%emt 0:00:37]} Kd5 {[%emt 0:00:18]} 59. Nc4 {[%emt 0:00:14]} Rc6 {[%emt 0:01:07]} 60. Na3 {[%emt 0:01:09]} Rxc2+ {[%emt 0:00:18]} 61. Nxc2 {[%emt 0:00:06]} f3+ {[%emt 0:00:17]} 62. Kf1 {[%emt 0:00:59]} Bd4 {[%emt 0:00:54]} 63. Ke1 {[%emt 0:00:10]} f2+ {[%emt 0:00:34]} 64. Ke2 {[%emt 0:00:46]} e3 {[%emt 0:00:10]} 65. Na3 {[%emt 0:00:11]} Ke4 {[%emt 0:00:24]} 66. Nc4 {[%emt 0:00:52]} Kf4 {[%emt 0:00:40]} 67. Nd6 {[%emt 0:00:25]} Be5 {[%emt 0:00:40]} 68. Nf7 {[%emt 0:00:02]} h5 {[%emt 0:00:22]} 69. Nh6 {[%emt 0:00:18]} g4 {[%emt 0:00:39]} 70. hxg4 {[%emt 0:01:19]} hxg4 {[%emt 0:00:21]} 71. Nf7 {[%emt 0:00:23]} g3 {[%emt 0:00:52]} 72. Kf1 {[%emt 0:00:18]} Bd4 {[%emt 0:00:12]} 73. Kg2 {[%emt 0:00:57]} e2 {[%emt 0:00:22]} 0-1

[Event "NED-ch U14 Girls 2019"]
[Site "Assen"]
[Date "2019.04.29"]
[Round "2.4"]
[White "Mensing, Luana"]
[Black "Maris, Evi"]
[Result "1-0"]
[ECO "C50"]
[WhiteElo "1549"]
[BlackElo "1504"]
[Annotator "NA RC"]
[PlyCount "81"]
[EventDate "2019.04.28"]
[EventType "swiss"]
[EventCountry "NED"]
[SourceTitle "playchess.com"]
[Source "ChessBase"]
[SourceQuality "1"]
[TimeControl "40/5400+30:1800+30"]

1. e4 {[%emt 0:00:00]} e5 {[%emt 0:00:00]} 2. Nf3 {[%emt 0:00:00]} Nc6 {[%emt 0:00:00]} 3. Nc3 {[%emt 0:00:23]} Nf6 {[%emt 0:00:00]} 4. Bc4 {[%emt 0:01:07]} Bc5 {[%emt 0:00:00]} 5. d3 {[%emt 0:01:00]} O-O {[%emt 0:00:09]} 6. O-O {[%emt 0:01:17]} a6 {[%emt 0:01:16]} 7. Bg5 {[%emt 0:05:14]} Be7 {[%emt 0:00:39]} 8. Qd2 {[%emt 0:08:00]} b5 {[%emt 0:01:40]} 9. Bb3 {[%emt 0:01:28]} Bb7 {[%emt 0:00:46]} 10. Ne2 {[%emt 0:11:04]} a5 {[%emt 0:01:30]} 11. a3 {[%emt 0:00:30]} a4 {[%emt 0:00:26]} 12. Ba2 {[%emt 0:00:05]} Ng4 {[%emt 0:01:24]} 13. Ng3 {[%emt 0:08:10]} h6 {[%emt 0:01:59]} 14. Bxe7 {[%emt 0:01:09]} Qxe7 {[%emt 0:00:26]} 15. Nf5 {[%emt 0:00:20]} Qc5 {[%emt 0:07:39]} 16. h3 {[%emt 0:01:04]} Nf6 {[%emt 0:01:09]} 17. b4 {[%emt 0:01:33]} axb3 {[%emt 0:00:37]} 18. Bxb3 {[%emt 0:00:13]} Rxa3 {[%emt 0:01:35]} 19. Nxh6+ {[%emt 0:02:09]} gxh6 {[%emt 0:01:05]} 20. Qxh6 {[%emt 0:00:06]} Nh7 {[%emt 0:00:47]} 21. Qg6+ {[%emt 0:03:23]} Kh8 {[%emt 0:00:25]} 22. Bxf7 {[%emt 0:01:32]} Ne7 {[%emt 0:01:13]} 23. Qh5 {[%emt 0:00:53]} Kg7 {[%emt 0:01:17]} 24. Bb3 {[%emt 0:10:34]} d6 {[%emt 0:02:19]} 25. d4 {[%emt 0:03:08]} Qb4 {[%emt 0:01:04]} 26. dxe5 {[%emt 0:01:07]} Bxe4 {[%emt 0:02:23]} 27. Qg4+ {[%emt 0:00:33]} Kh8 {[%emt 0:03:03]} 28. Rxa3 {[%emt 0:00:41]} Qxa3 {[%emt 0:00:58]} 29. Qxe4 {[%emt 0:00:06]} d5 {[%emt 0:01:20]} 30. Bxd5 {[%emt 0:00:38]} Nxd5 {[%emt 0:00:09]} 31. Qxd5 {[%emt 0:00:08]} Rg8 {[%emt 0:00:38]} 32. e6 {[%emt 0:02:05]} Nf6 {[%emt 0:00:54]} 33. Qf5 {[%emt 0:02:07]} Qe7 {[%emt 0:00:35]} 34. Ne5 {[%emt 0:00:57]} Qg7 {[%emt 0:02:45]} 35. Nf7+ {[%emt 0:00:10]} Qxf7 {[%emt 0:00:24]} 36. exf7 {[%emt 0:00:05]} Rf8 {[%emt 0:00:21]} 37. Qxf6+ {[%emt 0:00:06]} Kh7 {[%emt 0:00:13]} 38. Re1 {[%emt 0:00:12]} b4 {[%emt 0:00:18]} 39. Re5 {[%emt 0:00:08]} Rxf7 {[%emt 0:00:18]} 40. Qxf7+ {[%emt 0:00:10]} Kh6 {[%emt 0:00:15]} 41. Rh5# {[%emt 0:30:07]} 1-0

[Event "NED-ch U14 Girls 2019"]
[Site "Assen"]
[Date "2019.04.29"]
[Round "2.5"]
[White "Cordes, Jule"]
[Black "Verheij, Dana"]
[Result "1/2-1/2"]
[ECO "A57"]
[WhiteElo "1564"]
[BlackElo "1377"]
[Annotator "NA RC"]
[PlyCount "76"]
[EventDate "2019.04.28"]
[EventType "swiss"]
[EventCountry "NED"]
[SourceTitle "playchess.com"]
[Source "ChessBase"]
[SourceQuality "1"]
[TimeControl "40/5400+30:1800+30"]

1. d4 {[%emt 0:00:00]} Nf6 {[%emt 0:00:00]} 2. c4 {[%emt 0:00:00]} c5 {[%emt 0:00:00]} 3. d5 {[%emt 0:00:00]} b5 {[%emt 0:00:00]} 4. Qc2 {[%emt 0:00:00]} e6 {[%emt 0:00:50]} 5. e4 {[%emt 0:00:25]} Be7 {[%emt 0:00:44]} 6. Nc3 {[%emt 0:02:54]} b4 {[%emt 0:01:04]} 7. Nce2 {[%emt 0:00:19]} d6 {[%emt 0:06:12]} 8. Ng3 {[%emt 0:10:37]} O-O {[%emt 0:01:01]} 9. h3 {[%emt 0:01:19]} a5 {[%emt 0:02:37]} 10. Bd3 {[%emt 0:00:53]} a4 {[%emt 0:03:44]} 11. f4 {[%emt 0:06:11]} h6 {[%emt 0:09:17]} 12. Nf3 {[%emt 0:01:47]} Bd7 {[%emt 0:10:10]} 13. O-O {[%emt 0:03:45]} Na6 {[%emt 0:02:22]} 14. Be3 {[%emt 0:05:04]} Qb6 {[%emt 0:03:12]} 15. Qd2 {[%emt 0:13:39]} Ne8 {[%emt 0:11:35]} 16. Nh5 {[%emt 0:18:26]} Qd8 {[%emt 0:07:40]} 17. Nh2 {[%emt 0:04:48]} exd5 {[%emt 0:03:20]} 18. cxd5 {[%emt 0:01:54]} Bh4 {[%emt 0:09:36]} 19. Nf3 {[%emt 0:01:53]} g6 {[%emt 0:03:23]} 20. f5 {[%emt 0:01:01]} gxh5 {[%emt 0:13:52]} 21. Bxh6 {[%emt 0:00:40]} Ng7 {[%emt 0:00:28]} 22. Nxh4 {[%emt 0:04:17]} Qxh4 {[%emt 0:02:06]} 23. f6 {[%emt 0:10:08]} Nf5 {[%emt 0:06:06]} 24. Bxf8 {[%emt 0:02:20]} Kxf8 {[%emt 0:00:09]} 25. exf5 {[%emt 0:00:14]} Qxf6 {[%emt 0:00:17]} 26. Rae1 {[%emt 0:02:38]} Nc7 {[%emt 0:00:54]} 27. Be4 {[%emt 0:00:52]} Qd4+ {[%emt 0:00:18]} 28. Qxd4 {[%emt 0:00:59]} cxd4 {[%emt 0:00:04]} 29. Rd1 {[%emt 0:00:41]} Nb5 {[%emt 0:01:08]} 30. Bd3 {[%emt 0:00:24]} f6 {[%emt 0:00:25]} 31. Bxb5 {[%emt 0:00:42]} Bxb5 {[%emt 0:00:02]} 32. Rf2 {[%emt 0:00:34]} d3 {[%emt 0:00:05]} 33. Rfd2 {[%emt 0:05:51]} Rc8 {[%emt 0:00:24]} 34. Kf2 {[%emt 0:00:41]} b3 {[%emt 0:00:27]} 35. axb3 {[%emt 0:00:30]} axb3 {[%emt 0:00:05]} 36. Ke3 {[%emt 0:00:51]} Re8+ {[%emt 0:00:57]} 37. Kd4 {[%emt 0:00:37]} Re5 {[%emt 0:00:40]} 38. Rf2 {[%emt 0:00:33]} Kf7 {[%emt 0:00:21]} 1/2-1/2

[Event "NED-ch U14 Girls 2019"]
[Site "Assen"]
[Date "2019.04.29"]
[Round "2.6"]
[White "Maris, Lauri"]
[Black "Bruggink, Lyne"]
[Result "1-0"]
[ECO "B15"]
[WhiteElo "1265"]
[BlackElo "1425"]
[Annotator "NA RC"]
[PlyCount "75"]
[EventDate "2019.04.28"]
[EventType "swiss"]
[EventCountry "NED"]
[SourceTitle "playchess.com"]
[Source "ChessBase"]
[SourceQuality "1"]
[TimeControl "40/5400+30:1800+30"]

1. e4 {[%emt 0:00:00]} c6 {[%emt 0:00:00]} 2. Nc3 {[%emt 0:00:00]} d5 {[%emt 0:00:00]} 3. d4 {[%emt 0:01:00]} e6 {[%emt 0:00:28]} 4. g3 {[%emt 0:02:18]} Bb4 {[%emt 0:00:25]} 5. e5 {[%emt 0:01:11]} c5 {[%emt 0:10:07]} 6. a3 {[%emt 0:02:28]} cxd4 {[%emt 0:00:19]} 7. Qxd4 {[%emt 0:02:43]} Nc6 {[%emt 0:12:34]} 8. Bb5 {[%emt 0:05:22]} Bd7 {[%emt 0:02:07]} 9. Bxc6 {[%emt 0:02:22]} Bxc3+ {[%emt 0:00:06]} 10. Qxc3 {[%emt 0:00:18]} Bxc6 {[%emt 0:00:03]} 11. Qd4 {[%emt 0:03:33]} Ne7 {[%emt 0:00:26]} 12. Bg5 {[%emt 0:04:21]} Nf5 {[%emt 0:00:29]} 13. Qd2 {[%emt 0:07:15]} Qc7 {[%emt 0:02:01]} 14. Qe2 {[%emt 0:05:02]} Nd4 {[%emt 0:00:58]} 15. Qd2 {[%emt 0:03:19]} Qxe5+ {[%emt 0:00:17]} 16. Be3 {[%emt 0:00:27]} Nf5 {[%emt 0:01:26]} 17. Ne2 {[%emt 0:04:12]} Qxb2 {[%emt 0:00:49]} 18. O-O {[%emt 0:00:57]} Qf6 {[%emt 0:01:03]} 19. h4 {[%emt 0:02:07]} Qg6 {[%emt 0:02:37]} 20. Kh2 {[%emt 0:02:09]} e5 {[%emt 0:09:30]} 21. Qb4 {[%emt 0:01:28]} Nxe3 {[%emt 0:03:21]} 22. fxe3 {[%emt 0:00:34]} Qxc2 {[%emt 0:00:26]} 23. Rf2 {[%emt 0:01:54]} Qd3 {[%emt 0:00:37]} 24. Qc5 {[%emt 0:01:34]} Qc4 {[%emt 0:11:33]} 25. Qd6 {[%emt 0:04:31]} Qe4 {[%emt 0:00:58]} 26. Rxf7 {[%emt 0:09:34]} Kxf7 {[%emt 0:06:40]} 27. Rf1+ {[%emt 0:00:06]} Qf4 28. gxf4 {[%emt 0:00:32]} Rhf8 {[%emt 0:00:51]} 29. Qxe5 {[%emt 0:02:19]} Kg8 {[%emt 0:00:11]} 30. Rg1 {[%emt 0:00:42]} g6 {[%emt 0:00:18]} 31. h5 {[%emt 0:01:26]} Rae8 {[%emt 0:01:35]} 32. Qc3 {[%emt 0:01:49]} Rf5 {[%emt 0:03:37]} 33. Ng3 {[%emt 0:01:23]} Rf7 {[%emt 0:00:28]} 34. h6 {[%emt 0:01:40]} Ree7 {[%emt 0:02:09]} 35. Nh5 {[%emt 0:03:52]} Re6 {[%emt 0:04:05]} 36. f5 {[%emt 0:03:56]} d4 {[%emt 0:12:54]} 37. Qxd4 {[%emt 0:05:13]} Re4 {[%emt 0:01:34]} 38. Nf6+ {[%emt 0:00:36]} 1-0